bitfinex/quotes_BTCUSD_20250714
["timestamp","ask_amount","ask_price","bid_price","bid_amount"]
[1752479043075,0.416281,122840.0,122830.0,0.2660361]
[1752479043344,0.4244216,122840.0,122830.0,0.27417703]
[1752479043560,0.4244216,122840.0,122830.0,0.4005161]
[1752479043561,0.58723508,122840.0,122830.0,0.4005161]
[1752479043746,0.58723508,122840.0,122830.0,0.4086571]
[1752479044007,0.40814027,122840.0,122830.0,0.41679796]
[1752479044234,0.41014014,122840.0,122830.0,0.77559796]
[1752479044455,0.58923441,122840.0,122830.0,0.68803504]
[1752479044673,0.58923441,122840.0,122830.0,0.6961761]
[1752479044891,0.026421,122840.0,122830.0,0.70431696]
[1752479045117,0.0345616,122840.0,122830.0,0.70435696]
[1752479045331,0.19737501,122840.0,122830.0,0.7043571]
[1752479045507,0.026421,122840.0,122830.0,0.71245796]
[1752479045650,0.01014014,122840.0,122830.0,0.74455796]
[1752479045862,0.02642088,122840.0,122830.0,0.74455796]
[1752479046082,0.19737535,122840.0,122830.0,0.5938361]
[1752479046344,0.18923508,122840.0,122830.0,0.68803504]
[1752479046548,0.18109461,122840.0,122830.0,0.38262711]
[1752479046748,0.17509408,122840.0,122830.0,0.51706711]
[1752479047187,0.17509408,122840.0,122830.0,0.37957711]
[1752479047394,0.17509408,122840.0,122830.0,0.51397711]
[1752479047576,0.17509408,122840.0,122830.0,0.37957711]
[1752479048139,0.17509408,122840.0,122830.0,0.51397711]
[1752479048549,0.17509408,122840.0,122830.0,0.37957711]
[1752479048755,0.17509408,122840.0,122830.0,0.51397711]
[1752479048957,0.17509408,122840.0,122830.0,0.37957711]
[1752479049161,0.82528221,122840.0,122830.0,0.0004]
[1752479049389,0.82528221,122840.0,122820.0,0.00034957]
[1752479049390,0.57636787,122830.0,122820.0,0.00034957]
[1752479049620,0.17098178,122820.0,122810.0,0.13436]
[1752479049839,0.17098178,122820.0,122800.0,0.0031]
[1752479049840,0.1709957,122810.0,122800.0,0.0031]
[1752479050050,0.1709957,122810.0,122800.0,0.00526]
[1752479050249,0.5709957,122810.0,122800.0,0.13962]
[1752479050900,0.17100962,122800.0,122790.0,0.0035]
[1752479051112,0.17915274,122800.0,122790.0,0.55373073]
[1752479051321,0.17915274,122800.0,122790.0,0.38270711]
[1752479051524,0.17100962,122800.0,122790.0,0.38270711]
[1752479051731,0.48317775,122800.0,122790.0,0.08174711]
[1752479052185,0.88841775,122800.0,122790.0,0.0004]
[1752479052646,0.85347775,122800.0,122790.0,0.0004]
[1752479052856,0.51298962,122800.0,122790.0,0.0004]
[1752479053067,0.51298962,122800.0,122790.0,0.00256]
[1752479053304,0.2195226,122810.0,122790.0,0.00256]
[1752479053305,0.0005107,122810.0,122800.0,0.17915274]
[1752479053573,0.42493754,122810.0,122800.0,0.2739027]
[1752479053782,0.43308,122810.0,122800.0,0.26575985]
[1752479054014,0.41679515,122810.0,122800.0,0.41636562]
[1752479054220,0.58779112,122810.0,122800.0,0.2576168]
[1752479054451,0.57150647,122810.0,122800.0,0.22092711]
[1752479054660,0.56534388,122810.0,122800.0,0.21566711]
[1752479054879,0.56534388,122810.0,122800.0,0.21782711]
[1752479055520,0.17100962,122800.0,122790.0,0.2992]
[1752479055751,0.17298962,122800.0,122790.0,0.2961]
[1752479055973,0.17298962,122800.0,122790.0,0.43038]
[1752479056212,0.18113274,122800.0,122790.0,0.30424391]
[1752479056415,0.18113274,122800.0,122790.0,0.30136]
[1752479056416,0.17915274,122800.0,122790.0,0.30136]
[1752479056629,0.17915274,122800.0,122790.0,0.43564]
[1752479057052,0.19543898,122800.0,122790.0,0.49681497]
[1752479057254,0.02442922,122800.0,122790.0,0.71244195]
[1752479057460,0.00914272,122800.0,122790.0,0.71244195]
[1752479057676,0.001,122800.0,122790.0,0.95235008]
[1752479057896,0.00914272,122800.0,122790.0,0.95235008]
[1752479058107,0.19643824,122800.0,122790.0,0.71917073]
[1752479058351,0.18015267,122800.0,122790.0,0.55373073]
[1752479058602,0.17200962,122800.0,122790.0,0.51694711]
[1752479059042,0.17200962,122800.0,122790.0,0.52509109]
[1752479059243,0.17200962,122800.0,122790.0,0.51694711]
[1752479059455,0.88111226,122800.0,122790.0,0.0004]
[1752479059674,0.88111226,122800.0,122790.0,0.1346]
[1752479059675,0.94705226,122800.0,122790.0,0.1346]
[1752479060112,0.94705226,122800.0,122790.0,0.0004]
[1752479060324,0.53804644,122800.0,122790.0,0.0004]
[1752479060532,0.50584644,122800.0,122790.0,0.1346]
[1752479060735,0.50584644,122800.0,122790.0,0.0004]
[1752479060969,0.81827457,122800.0,122790.0,0.0004]
[1752479061209,0.88197457,122800.0,122790.0,0.1346]
[1752479061423,0.53804644,122800.0,122790.0,0.0004]
[1752479061644,0.50584644,122800.0,122790.0,0.13456]
[1752479064244,0.16584644,122800.0,122790.0,0.13982]
[1752479064665,0.16386644,122800.0,122790.0,0.13982]
[1752479064909,0.00914299,122800.0,122790.0,0.19297086]
[1752479065141,0.001,122800.0,122790.0,0.7499261]
[1752479065350,0.001,122800.0,122790.0,0.7805261]
[1752479065773,0.19643865,122800.0,122790.0,0.47033803]
[1752479065988,0.01728578,122800.0,122790.0,0.44788155]
[1752479066217,0.001,122800.0,122790.0,0.62394968]
[1752479066434,0.001,122800.0,122790.0,0.80321053]
[1752479066636,0.001,122800.0,122790.0,0.80317053]
[1752479067536,0.001,122800.0,122790.0,0.4929824]
[1752479067758,0.001,122800.0,122790.0,0.80317053]
[1752479068653,0.01728584,122800.0,122790.0,0.34436155]
[1752479068926,0.00914285,122800.0,122790.0,0.47840155]
[1752479069147,0.00914285,122800.0,122790.0,0.34436155]
[1752479069377,0.01728584,122800.0,122790.0,0.47840155]
[1752479070175,0.00914285,122800.0,122790.0,0.47840155]
[1752479070410,0.001,122800.0,122790.0,0.47840155]
[1752479070602,0.00914279,122800.0,122790.0,0.47840155]
[1752479070802,0.01728578,122800.0,122790.0,0.34436155]
[1752479071242,0.01728578,122800.0,122790.0,0.44776155]
[1752479071460,0.01728571,122800.0,122790.0,0.44776155]
[1752479071667,0.001,122800.0,122790.0,0.31376155]
[1752479071877,0.001,122800.0,122790.0,0.44776155]
[1752479072540,0.001,122800.0,122790.0,0.65424968]
[1752479072746,0.001,122800.0,122790.0,0.78824968]
[1752479073592,0.001,122800.0,122790.0,0.65424968]
[1752479073799,0.00914272,122800.0,122790.0,0.34406155]
[1752479074043,0.001,122800.0,122790.0,0.47802155]
[1752479074500,0.001,122800.0,122790.0,0.34406155]
[1752479074706,0.001,122800.0,122790.0,0.44768155]
[1752479074915,0.01728578,122800.0,122790.0,0.31376155]
[1752479075123,0.00914279,122800.0,122790.0,0.44768155]
[1752479075400,0.01728571,122800.0,122790.0,0.44768155]
[1752479075823,0.03357188,122800.0,122790.0,0.40823797]
[1752479076024,0.041715,122800.0,122790.0,0.27431797]
[1752479076229,0.0254287,122800.0,122790.0,0.57001797]
[1752479076423,0.00914279,122800.0,122790.0,0.57001797]
[1752479076681,0.01728571,122800.0,122790.0,0.70393797]
[1752479076891,0.00914279,122800.0,122790.0,0.70389797]
[1752479077067,0.00914285,122800.0,122790.0,0.57001797]
[1752479077288,0.00914285,122800.0,122790.0,0.70389797]
[1752479077712,0.00914279,122800.0,122790.0,0.57001797]
[1752479077949,0.00914279,122800.0,122790.0,0.70389797]
[1752479078161,0.01728571,122800.0,122790.0,0.70389797]
[1752479078380,0.00914279,122800.0,122790.0,0.57001797]
[1752479078597,0.01728564,122800.0,122790.0,0.64519188]
[1752479078818,0.02542869,122800.0,122790.0,0.64519188]
[1752479079034,0.03357161,122800.0,122790.0,0.64519188]
[1752479079274,0.04171479,122800.0,122790.0,0.64519188]
[1752479080158,0.18534267,122800.0,122790.0,0.37704711]
[1752479080599,0.18534267,122800.0,122790.0,0.51088711]
[1752479080840,0.65042036,122800.0,122790.0,0.2957]
[1752479081042,0.71322036,122800.0,122790.0,0.2957]
[1752479081252,0.71322036,122800.0,122790.0,0.4295]
[1752479081899,0.71322036,122800.0,122790.0,0.1338]
[1752479082316,0.58223267,122800.0,122790.0,0.17307356]
[1752479082553,0.42750908,122800.0,122790.0,0.18936086]
[1752479082780,0.41728564,122800.0,122790.0,0.40768797]
[1752479082986,0.01728564,122800.0,122790.0,0.40768797]
[1752479083207,0.02542869,122800.0,122790.0,0.40768797]
[1752479083419,0.001,122800.0,122790.0,0.27388797]
[1752479083632,0.001,122800.0,122790.0,0.6377761]
[1752479083814,0.001,122800.0,122790.0,0.7715361]
[1752479084750,0.01728571,122800.0,122790.0,0.42964797]
[1752479084956,0.01728571,122800.0,122790.0,0.39764797]
[1752479085167,0.0254287,122800.0,122790.0,0.39764797]
[1752479085378,0.01728571,122800.0,122790.0,0.26388797]
[1752479085602,0.00914279,122800.0,122790.0,0.55958797]
[1752479085808,0.001,122800.0,122790.0,0.69330797]
[1752479086000,0.001,122800.0,122790.0,1.0670961]
[1752479087769,0.01728578,122800.0,122790.0,1.0360961]
[1752479088018,0.0254289,122800.0,122790.0,0.69330797]
[1752479088262,0.00914279,122800.0,122790.0,0.69330797]
[1752479088761,0.01728571,122800.0,122790.0,0.69330797]
[1752479088969,0.01728571,122800.0,122790.0,0.55958797]
[1752479089183,0.01728571,122800.0,122790.0,0.37909711]
[1752479089184,0.19037566,122800.0,122790.0,0.37909711]
[1752479089412,0.18223274,122800.0,122790.0,0.52092109]
[1752479089618,0.18223274,122800.0,122790.0,0.5664083]
[1752479089833,0.18223274,122800.0,122790.0,0.7000483]
[1752479090038,0.19037599,122800.0,122790.0,0.69190458]
[1752479090252,0.19037599,122800.0,122790.0,0.51273711]
[1752479090473,0.17719969,122800.0,122790.0,0.51273711]
[1752479090695,0.17719969,122800.0,122790.0,0.37909711]
[1752479090906,0.17719969,122800.0,122790.0,0.51273711]
[1752479091113,0.17719969,122800.0,122790.0,0.37704711]
[1752479091328,0.51719969,122800.0,122790.0,0.2957]
[1752479091555,0.23789969,122800.0,122790.0,0.42934]
[1752479091765,0.23789969,122800.0,122790.0,0.2957]
[1752479092180,0.23789969,122800.0,122790.0,0.4293]
[1752479092635,0.23789969,122800.0,122790.0,0.2957]
[1752479092758,0.23789969,122800.0,122790.0,0.4293]
[1752479092968,0.57789969,122800.0,122790.0,0.2957]
[1752479093168,0.57789969,122800.0,122790.0,0.4293]
[1752479093479,0.57789969,122800.0,122790.0,0.2957]
[1752479095709,0.88808782,122800.0,122790.0,0.2957]
[1752479096973,0.85798782,122800.0,122790.0,0.2957]
[1752479097172,0.51719969,122800.0,122790.0,0.2957]
[1752479097379,0.57102362,122790.0,122780.0,0.44780464]
[1752479097585,0.01628842,122780.0,122770.0,0.29560838]
[1752479097795,0.5822774,122790.0,122770.0,0.56462825]
[1752479098010,0.59042098,122790.0,122780.0,0.00814464]
[1752479098223,0.19042098,122790.0,122780.0,0.00814464]
[1752479098432,0.1843574,122790.0,122780.0,0.17103761]
[1752479098634,0.1843574,122790.0,122780.0,0.17918219]
[1752479098838,0.1843574,122790.0,122780.0,0.40215381]
[1752479099049,0.1843574,122790.0,122780.0,0.2605293]
[1752479099259,0.17621362,122790.0,122780.0,0.21482711]
[1752479099458,0.18425353,122790.0,122780.0,0.21482711]
[1752479099660,0.17610962,122790.0,122780.0,0.21482711]
[1752479100289,0.17103748,122780.0,122770.0,0.29552094]
[1752479100494,0.17311748,122780.0,122770.0,0.51030805]
[1752479100709,0.17622748,122780.0,122770.0,0.51030805]
[1752479101130,0.17919666,122770.0,122760.0,0.46658616]
[1752479101337,0.17919666,122770.0,122760.0,0.55649923]
[1752479101547,0.17819666,122770.0,122760.0,0.68179346]
[1752479101757,0.17819666,122770.0,122760.0,0.37728805]
[1752479101967,0.48542968,122770.0,122760.0,0.29552094]
[1752479102423,0.48542968,122770.0,122760.0,0.29567382]
[1752479102635,0.61886968,122770.0,122760.0,0.29567382]
[1752479102849,0.54992968,122770.0,122760.0,0.29567382]
[1752479103068,0.23974155,122770.0,122760.0,0.29567382]
[1752479103296,0.20724155,122770.0,122760.0,0.29567382]
[1752479103511,0.34002005,122770.0,122760.0,0.29567382]
[1752479103721,0.30802005,122770.0,122760.0,0.29567382]
[1752479103923,0.30149624,122770.0,122760.0,0.29567382]
[1752479104369,0.16809624,122770.0,122760.0,0.29567382]
[1752479104607,1.07518437,122770.0,122760.0,0.29567382]
[1752479104823,1.07618437,122770.0,122760.0,0.29567382]
[1752479105462,0.88278437,122770.0,122760.0,0.00015288]
[1752479105906,1.01614437,122770.0,122760.0,0.00015288]
[1752479106143,1.01614437,122770.0,122730.0,0.29592094]
[1752479106144,0.1792402,122740.0,122730.0,0.42928094]
[1752479106369,0.1844102,122740.0,122730.0,0.29607476]
[1752479107051,0.5844102,122740.0,122730.0,0.29607476]
[1752479108537,0.5844102,122740.0,122730.0,0.00055382]
[1752479108770,0.89459833,122740.0,122730.0,0.00055382]
[1752479108995,0.95729833,122740.0,122730.0,0.00055382]
[1752479109196,1.09061833,122740.0,122730.0,0.00055382]
[1752479109415,1.11196544,122740.0,122730.0,0.00055382]
[1752479109630,1.11196544,122740.0,122730.0,0.00047284]
[1752479109874,0.63530717,122730.0,122720.0,0.0004]
[1752479110101,0.9475553,122730.0,122720.0,0.0004]
[1752479110304,0.5506253,122730.0,122720.0,0.0004]
[1752479110903,0.24043717,122730.0,122720.0,0.0004]
[1752479111741,0.24043717,122730.0,122720.0,0.00031906]
[1752479112555,0.18438493,122730.0,122720.0,0.27502755]
[1752479112763,0.18438493,122730.0,122720.0,0.43800024]
[1752479112969,0.18438493,122730.0,122720.0,0.44614873]
[1752479113180,0.17925493,122730.0,122720.0,0.45471709]
[1752479113385,0.4083003,122740.0,122720.0,0.54421202]
[1752479113614,0.59061069,122740.0,122730.0,0.1741073]
[1752479113827,0.59267069,122740.0,122720.0,0.52749517]
[1752479114041,0.18232513,122730.0,122720.0,0.00031906]
[1752479114260,0.18538513,122730.0,122720.0,0.00031906]
[1752479114467,0.18538513,122730.0,122720.0,0.13355906]
[1752479114717,0.18538513,122730.0,122720.0,0.16329168]
[1752479114916,0.18438513,122730.0,122720.0,0.30468017]
[1752479115122,0.16808934,122730.0,122720.0,0.13355906]
[1752479115334,0.16808934,122730.0,122720.0,0.30468031]
[1752479115560,0.16808934,122730.0,122720.0,0.31282887]
[1752479115989,0.16808934,122730.0,122720.0,0.14170769]
[1752479116196,0.16808934,122730.0,122720.0,0.00031906]
[1752479116419,0.16808934,122730.0,122720.0,0.13351906]
[1752479116639,0.96239481,122730.0,122720.0,0.00031906]
[1752479116855,1.01427747,122730.0,122720.0,0.00031906]
[1752479117508,1.01527747,122730.0,122720.0,0.00031906]
[1752479117720,0.88207747,122730.0,122720.0,0.00031906]
[1752479117926,1.01527747,122730.0,122720.0,0.00031906]
[1752479118357,1.09658458,122730.0,122720.0,0.00031906]
[1752479118790,1.09658458,122730.0,122710.0,0.0004]
[1752479118791,0.54380924,122720.0,122710.0,0.0004]
[1752479119008,0.23875111,122720.0,122710.0,0.0004]
[1752479119213,0.31755954,122720.0,122710.0,0.0004]
[1752479120136,0.18439954,122720.0,122710.0,0.0004]
[1752479120348,0.31341111,122720.0,122710.0,0.0004]
[1752479120988,0.30941111,122720.0,122710.0,0.0004]
[1752479121211,0.17113512,122710.0,122700.0,0.13009871]
[1752479121422,0.17113512,122710.0,122700.0,0.13866866]
[1752479121625,0.17113512,122710.0,122700.0,0.14681841]
[1752479121827,0.17113512,122710.0,122700.0,0.1549681]
[1752479122032,0.17113512,122710.0,122700.0,0.13051884]
[1752479122235,0.17113512,122710.0,122700.0,0.13866859]
[1752479122471,0.17113512,122710.0,122700.0,0.27178859]
[1752479122678,0.00814922,122710.0,122700.0,0.27178859]
[1752479122894,0.0244476,122710.0,122700.0,0.27178859]
[1752479123068,0.1874335,122710.0,122700.0,0.27178859]
[1752479123491,0.1884335,122710.0,122700.0,0.27178866]
[1752479123665,0.5884335,122710.0,122700.0,0.27178866]
[1752479123883,0.41729831,122710.0,122700.0,0.28808797]
[1752479124068,0.4254476,122710.0,122700.0,0.27993841]
[1752479124267,0.5884335,122710.0,122700.0,0.27993841]
[1752479124671,0.5915035,122710.0,122700.0,0.13866866]
[1752479124870,0.58541441,122710.0,122700.0,0.13866866]
[1752479125091,0.58541441,122710.0,122700.0,0.28804797]
[1752479125290,0.58541441,122710.0,122700.0,0.27989841]
[1752479125567,0.58541441,122710.0,122700.0,0.27989842]
[1752479125850,0.58541441,122710.0,122700.0,0.27174873]
[1752479126048,0.58541441,122710.0,122700.0,0.27989842]
[1752479126895,0.58541441,122710.0,122700.0,0.56744873]
[1752479127098,0.5691159,122710.0,122700.0,0.2957]
[1752479127312,0.5691159,122710.0,122700.0,0.4287]
[1752479128571,0.00914916,122710.0,122700.0,0.59211918]
[1752479128790,0.03359636,122710.0,122700.0,0.61656844]
[1752479128993,0.04174505,122710.0,122700.0,0.62471793]
[1752479129195,0.02544654,122710.0,122700.0,0.62471793]
[1752479129406,0.0335955,122710.0,122700.0,0.65471793]
[1752479129823,0.001,122710.0,122700.0,0.78211317]
[1752479130869,0.18670768,122740.0,122730.0,0.01629572]
[1752479131009,0.19178491,122740.0,122730.0,0.46185025]
[1752479131207,0.02883873,122740.0,122730.0,0.50039775]
[1752479131425,0.4206915,122740.0,122730.0,0.50039775]
[1752479131744,0.02069117,122740.0,122730.0,0.49225019]
[1752479131940,0.03698517,122740.0,122730.0,0.49225019]
[1752479132186,0.0206911,122740.0,122730.0,0.49225019]
[1752479132390,0.0369855,122740.0,122730.0,0.48410269]
[1752479132622,0.19178486,122740.0,122730.0,0.27444796]
[1752479132786,0.18876796,122740.0,122730.0,0.28259586]
[1752479132997,0.19076796,122740.0,122730.0,0.45370303]
[1752479133202,0.18870796,122740.0,122730.0,0.28259586]
[1752479133407,0.18870796,122740.0,122730.0,0.4537029]
[1752479133770,0.0063975,122740.0,122730.0,0.91388564]
[1752479134133,0.0145442,122740.0,122730.0,0.91388564]
[1752479134587,0.0063975,122740.0,122730.0,0.60369751]
[1752479134831,0.0102999,122740.0,122730.0,0.60369751]
[1752479135198,0.00215307,122740.0,122730.0,1.20984564]
[1752479135759,0.00015307,122740.0,122730.0,1.20984564]
[1752479136410,0.00015307,122740.0,122730.0,1.21785033]
[1752479136626,0.00015307,122740.0,122730.0,0.93869118]
[1752479136837,0.00015307,122740.0,122730.0,1.23439118]
[1752479137764,0.00015307,122740.0,122730.0,0.65832305]
[1752479137969,0.00015307,122740.0,122730.0,0.76831751]
[1752479138187,0.00015307,122740.0,122730.0,0.76827751]
[1752479138841,0.00015307,122740.0,122730.0,0.63551751]
[1752479139090,0.00015307,122740.0,122730.0,0.76827751]
[1752479141434,0.00015307,122740.0,122730.0,1.07872564]
[1752479141658,0.00015307,122740.0,122730.0,1.22598649]
[1752479143856,0.00015307,122740.0,122730.0,1.56598649]
[1752479145142,0.00015307,122740.0,122730.0,0.99005836]
[1752479145420,0.00015307,122740.0,122730.0,0.60541751]
[1752479145629,0.01644667,122740.0,122730.0,0.70561751]
[1752479145802,0.00829984,122740.0,122730.0,0.70761751]
[1752479146016,0.00015307,122740.0,122730.0,0.70761751]
[1752479146223,0.00015307,122740.0,122730.0,0.91580564]
[1752479146437,0.00015307,122740.0,122730.0,1.08066564]
[1752479146651,0.00015307,122740.0,122730.0,1.09520649]
[1752479146862,0.00015307,122740.0,122730.0,1.35135649]
[1752479147073,0.00015307,122740.0,122730.0,1.48395649]
[1752479147295,0.00015307,122740.0,122730.0,1.48391649]
[1752479147499,0.00015307,122740.0,122730.0,1.35135649]
[1752479147711,0.00015307,122740.0,122730.0,1.48391649]
[1752479149983,0.00015307,122740.0,122730.0,1.48365649]
[1752479150203,0.00015307,122740.0,122730.0,1.30234649]
[1752479150452,0.00015307,122740.0,122730.0,1.11013751]
[1752479150638,0.00015307,122740.0,122730.0,1.07813751]
[1752479151069,0.00015307,122740.0,122730.0,1.25580564]
[1752479151505,0.00015307,122740.0,122730.0,1.09263836]
[1752479151768,0.00015307,122740.0,122730.0,1.48513649]
[1752479152191,0.00015307,122740.0,122730.0,1.35265649]
[1752479152623,0.00015307,122740.0,122730.0,1.04246836]
[1752479152849,0.00015307,122740.0,122730.0,1.35265649]
[1752479153089,0.00015307,122740.0,122730.0,1.17464836]
[1752479153306,0.00015307,122740.0,122730.0,1.25580564]
[1752479153522,0.00015307,122740.0,122730.0,1.38824564]
[1752479153750,0.00015307,122740.0,122730.0,1.07805751]
[1752479153969,0.00015307,122740.0,122730.0,0.78235751]
[1752479155063,0.00015307,122740.0,122730.0,0.78231751]
[1752479155954,0.00015307,122740.0,122730.0,0.66806751]
[1752479156169,0.0082999,122740.0,122730.0,0.61931751]
[1752479156387,0.00529307,122740.0,122730.0,0.75171751]
[1752479156610,0.00015307,122740.0,122730.0,0.75171751]
[1752479156821,0.00829977,122740.0,122730.0,0.75171751]
[1752479157029,0.00015307,122740.0,122730.0,0.75171751]
[1752479157439,0.00015307,122740.0,122730.0,0.61931751]
[1752479157660,0.00015307,122740.0,122730.0,0.75167751]
[1752479158089,0.00829977,122740.0,122730.0,0.75167751]
[1752479158351,0.00015307,122740.0,122730.0,0.61931751]
[1752479158546,0.00015307,122740.0,122730.0,0.75167751]
[1752479158749,0.00015307,122740.0,122730.0,0.75163751]
[1752479158954,0.00529307,122740.0,122730.0,0.75163751]
[1752479159174,0.00015307,122740.0,122730.0,0.75163751]
[1752479159648,0.01644667,122740.0,122730.0,0.27931751]
[1752479159867,0.20082713,122740.0,122730.0,0.26260224]
[1752479160093,0.62209935,122740.0,122730.0,0.08334711]
[1752479160344,0.31191122,122740.0,122730.0,0.13432]
[1752479160783,0.31191122,122740.0,122730.0,0.13232]
[1752479161008,0.31191122,122740.0,122710.0,0.37463248]
[1752479161009,0.1864177,122720.0,122710.0,0.19536]
[1752479161239,0.17928414,122710.0,122700.0,0.09134711]
[1752479161455,0.22245343,122710.0,122700.0,0.40292573]
[1752479161752,0.00514,122710.0,122700.0,0.41964478]
[1752479161991,0.17928348,122710.0,122700.0,0.09134711]
[1752479162214,0.18945331,122710.0,122700.0,0.40292586]
[1752479162428,0.24992435,122710.0,122700.0,0.22362711]
[1752479163715,0.25092435,122710.0,122700.0,0.39477611]
[1752479163930,0.25092435,122710.0,122700.0,0.22362711]
[1752479164159,0.25092435,122710.0,122700.0,0.23177706]
[1752479164402,0.24277519,122710.0,122700.0,0.22362711]
[1752479165095,0.24277519,122710.0,122700.0,0.09134711]
[1752479165307,0.24277519,122710.0,122700.0,0.01]
[1752479165308,0.55296332,122710.0,122700.0,0.01]
[1752479165736,0.25092428,122710.0,122700.0,0.01]
[1752479166582,0.25092428,122710.0,122700.0,0.18929876]
[1752479166583,0.08793812,122710.0,122700.0,0.18929876]
[1752479166786,0.2017222,122710.0,122700.0,0.09134711]
[1752479166990,0.24862435,122710.0,122700.0,0.09134711]
[1752479167193,0.24862435,122710.0,122700.0,0.22354711]
[1752479167632,0.21692435,122710.0,122700.0,0.26249611]
[1752479167853,0.03058694,122710.0,122700.0,0.28694511]
[1752479168078,0.18542441,122710.0,122700.0,0.09134711]
[1752479168312,0.24862441,122710.0,122700.0,0.22350711]
[1752479168522,0.24862441,122710.0,122700.0,0.01]
[1752479169160,0.19862441,122710.0,122700.0,0.14216]
[1752479169368,0.20066441,122710.0,122700.0,0.14216]
[1752479170646,0.20066441,122710.0,122700.0,0.01]
[1752479170857,0.20066414,122710.0,122700.0,0.32145889]
[1752479171113,0.20066414,122710.0,122700.0,0.31330907]
[1752479171320,0.19565512,122710.0,122700.0,0.14212]
[1752479171522,0.19565512,122710.0,122700.0,0.15026995]
[1752479171725,0.16395512,122710.0,122700.0,0.02629984]
[1752479171933,0.16395512,122710.0,122700.0,0.14212]
[1752479172157,0.16395512,122710.0,122700.0,0.15026989]
[1752479172368,0.16395512,122710.0,122700.0,0.15026995]
[1752479172584,0.16395512,122710.0,122700.0,0.16656966]
[1752479172783,0.16395512,122710.0,122700.0,0.15026989]
[1752479172988,0.16395512,122710.0,122700.0,0.14212]
[1752479173396,0.16395512,122710.0,122700.0,0.15026982]
[1752479173813,0.16395512,122710.0,122700.0,0.14212]
[1752479174216,0.16395512,122710.0,122700.0,0.15026989]
[1752479174423,0.17210428,122710.0,122700.0,0.32141882]
[1752479174645,0.05297812,122710.0,122700.0,0.32137882]
[1752479174864,0.22411331,122710.0,122700.0,0.31322907]
[1752479175079,0.22411331,122710.0,122700.0,0.32137882]
[1752479175482,0.21596435,122710.0,122700.0,0.18114907]
[1752479175690,0.21596435,122710.0,122700.0,0.15022982]
[1752479175900,0.21596435,122710.0,122700.0,0.02629957]
[1752479176102,0.21596435,122710.0,122700.0,0.313189]
[1752479176724,0.18446435,122710.0,122700.0,0.32133875]
[1752479176925,0.18446435,122710.0,122700.0,0.18929888]
[1752479177103,0.18446435,122710.0,122700.0,0.32133888]
[1752479177320,0.18446435,122710.0,122700.0,0.01814995]
[1752479177575,0.17631519,122710.0,122700.0,0.01]
[1752479177782,0.17631519,122710.0,122700.0,0.15018989]
[1752479178069,0.17631519,122710.0,122700.0,0.32133889]
[1752479178278,0.17631519,122710.0,122700.0,0.14204]
[1752479178452,0.1681659,122710.0,122700.0,0.14204]
[1752479178675,0.1681659,122710.0,122700.0,0.15018995]
[1752479178860,0.1681659,122710.0,122700.0,0.15833977]
[1752479179116,0.1681659,122710.0,122700.0,0.01]
[1752479179352,0.2181659,122710.0,122700.0,0.14204]
[1752479179550,0.2802659,122710.0,122700.0,0.01]
[1752479179907,0.2802659,122710.0,122700.0,0.142]
[1752479180143,0.2802659,122710.0,122700.0,0.01]
[1752479180577,0.2802659,122710.0,122700.0,0.14196]
[1752479180759,0.2497659,122710.0,122700.0,0.14196]
[1752479180978,0.2181659,122710.0,122700.0,0.14196]
[1752479181194,0.2181659,122710.0,122700.0,0.01]
[1752479181391,0.2181659,122710.0,122700.0,0.14196]
[1752479182592,0.06332902,122710.0,122700.0,0.19744825]
[1752479182808,0.07648688,122710.0,122700.0,0.33137825]
[1752479183022,0.07962688,122710.0,122700.0,0.33137825]
[1752479183227,0.07147772,122710.0,122700.0,0.33137825]
[1752479183437,0.07962688,122710.0,122700.0,0.33137825]
[1752479183695,0.0877761,122710.0,122700.0,0.33137825]
[1752479183877,0.07962681,122710.0,122700.0,0.33137825]
[1752479184283,0.08777603,122710.0,122700.0,0.33137825]
[1752479184496,0.09592532,122710.0,122700.0,0.33137825]
[1752479184916,0.07563603,122710.0,122700.0,0.33137825]
[1752479185131,0.07767603,122710.0,122700.0,0.33137825]
[1752479185505,0.08582532,122710.0,122700.0,0.19945838]
[1752479185702,0.08682532,122710.0,122700.0,0.33733838]
[1752479186078,0.06033772,122710.0,122700.0,0.34853787]
[1752479186282,0.06848681,122710.0,122700.0,0.34853787]
[1752479186499,0.08478519,122710.0,122700.0,0.34853787]
[1752479186693,0.24981162,122710.0,122700.0,0.33733838]
[1752479186925,0.08682572,122710.0,122700.0,0.34548794]
[1752479187748,0.24166266,122710.0,122700.0,0.19730876]
[1752479187895,0.24166266,122710.0,122700.0,0.016]
[1752479187896,0.53889602,122710.0,122700.0,0.016]
[1752479188102,0.60209602,122710.0,122700.0,0.14784]
[1752479188370,0.60209602,122710.0,122700.0,0.016]
[1752479188587,0.60209602,122710.0,122700.0,0.14784]
[1752479188795,0.60209602,122710.0,122700.0,0.1478]
[1752479189605,0.60209602,122710.0,122700.0,0.016]
[1752479189813,0.60209602,122710.0,122700.0,0.1478]
[1752479190772,0.60209602,122710.0,122700.0,0.016]
[1752479191250,0.73385602,122710.0,122700.0,0.016]
[1752479191520,1.13385602,122710.0,122700.0,0.016]
[1752479192254,1.00209602,122710.0,122700.0,0.016]
[1752479192731,1.13385602,122710.0,122700.0,0.016]
[1752479193585,0.21721519,122710.0,122700.0,0.14772]
[1752479193805,0.21721519,122710.0,122700.0,0.016]
[1752479194229,0.21721519,122710.0,122700.0,0.31886907]
[1752479194447,0.21721519,122710.0,122700.0,0.32902882]
[1752479194661,0.63962239,122710.0,122700.0,0.74011638]
[1752479194871,0.63962239,122710.0,122700.0,0.40527618]
[1752479195085,0.2335135,122710.0,122700.0,0.706076]
[1752479195297,0.2314735,122710.0,122700.0,0.59370544]
[1752479195505,0.2314735,122710.0,122700.0,0.73353506]
[1752479195939,0.22332421,122710.0,122700.0,0.73353506]
[1752479196161,0.2314735,122710.0,122700.0,0.72538517]
[1752479196845,0.2314735,122710.0,122700.0,0.73353473]
[1752479197484,0.0766357,122710.0,122700.0,0.7648344]
[1752479197762,0.0766357,122710.0,122700.0,1.47051608]
[1752479197763,0.04404,122710.0,122700.0,1.47051608]
[1752479198396,0.04304,122710.0,122700.0,1.46451608]
[1752479198835,0.03098129,122710.0,122700.0,1.84398011]
[1752479199071,0.03098129,122710.0,122700.0,1.84498011]
[1752479199275,0.03098129,122710.0,122700.0,1.52543928]
[1752479199635,0.03098129,122710.0,122700.0,1.52743928]
[1752479199893,0.03098129,122710.0,122700.0,1.52543928]
[1752479200475,0.02998129,122710.0,122700.0,1.52543928]
[1752479200874,0.02998129,122710.0,122700.0,1.47768928]
[1752479201144,0.02998129,122710.0,122700.0,1.78084789]
[1752479201345,0.02998129,122710.0,122700.0,1.46899817]
[1752479201490,0.02998129,122710.0,122700.0,1.77984789]
[1752479202083,0.02998129,122710.0,122700.0,1.46899817]
[1752479203915,0.08967132,122740.0,122730.0,0.24810244]
[1752479203916,0.00015307,122740.0,122730.0,0.24810244]